[Event "Late-Titled-Tuesday-Blitz-February-06-2024"]
[Site "Chess.com"]
[Date "2024.02.06"]
[Round "2"]
[White "Reality-Stone"]
[Black "ChristopherYoo"]
[Result "0-1"]
[WhiteElo "2624"]
[BlackElo "3014"]
[TimeControl "180+1"]
[EndTime "14:18:01 PST"]
[Termination "ChristopherYoo won by checkmate"]

1. Nf3 {[%clk 0:03:00.9]} 1... Nf6 {[%clk 0:02:59.5]} 2. g3 {[%clk 0:03:01.1]}
2... b5 {[%clk 0:02:58.8]} 3. Bg2 {[%clk 0:03:01.4]} 3... Bb7 {[%clk 0:02:59.4]}
4. O-O {[%clk 0:03:01.8]} 4... e6 {[%clk 0:02:58.9]} 5. a4 {[%clk 0:03:01.2]}
5... b4 {[%clk 0:02:58.9]} 6. c4 {[%clk 0:03:00.1]} 6... c5 {[%clk 0:02:52.9]}
7. b3 {[%clk 0:02:57.3]} 7... Be7 {[%clk 0:02:45.6]} 8. Bb2 {[%clk 0:02:57.3]}
8... O-O {[%clk 0:02:46.1]} 9. d4 {[%clk 0:02:51.5]} 9... cxd4 {[%clk
0:02:45.8]} 10. Nbd2 {[%clk 0:02:48.3]} 10... Na6 {[%clk 0:02:39.4]} 11. Nxd4
{[%clk 0:02:38.3]} 11... Bxg2 {[%clk 0:02:38.7]} 12. Kxg2 {[%clk 0:02:39.2]}
12... Nc5 {[%clk 0:02:36.1]} 13. f3 {[%clk 0:02:23.4]} 13... Qc8 {[%clk
0:02:33.3]} 14. e4 {[%clk 0:02:21.9]} 14... Nd3 {[%clk 0:02:29.9]} 15. Qb1
{[%clk 0:02:18.2]} 15... Nxb2 {[%clk 0:02:29.5]} 16. Qxb2 {[%clk 0:02:19.1]}
16... d6 {[%clk 0:02:29.8]} 17. Rad1 {[%clk 0:02:07.1]} 17... Nd7 {[%clk
0:02:26.3]} 18. Rfe1 {[%clk 0:02:06.1]} 18... Bf6 {[%clk 0:02:25]} 19. Nf1
{[%clk 0:02:06.2]} 19... Nc5 {[%clk 0:02:17]} 20. Ne3 {[%clk 0:02:04.8]} 20...
h5 {[%clk 0:02:03.2]} 21. Qc2 {[%clk 0:01:57.2]} 21... Rd8 {[%clk 0:01:59.9]}
22. h3 {[%clk 0:01:49.8]} 22... h4 {[%clk 0:01:55.3]} 23. Ng4 {[%clk 0:01:46.6]}
23... Bxd4 {[%clk 0:01:53.5]} 24. Rxd4 {[%clk 0:01:47.5]} 24... e5 {[%clk
0:01:49.1]} 25. Rd5 {[%clk 0:01:42]} 25... hxg3 {[%clk 0:01:48.9]} 26. Red1
{[%clk 0:01:25.2]} 26... Qc7 {[%clk 0:01:46.6]} 27. Qd2 {[%clk 0:01:21.1]} 27...
Nxb3 {[%clk 0:01:46.1]} 28. Qg5 {[%clk 0:01:20.2]} 28... Nc5 {[%clk 0:01:24.9]}
29. Nf6+ {[%clk 0:00:56.8]} 29... Kf8 {[%clk 0:01:24.8]} 30. Nh7+ {[%clk
0:00:48.1]} 30... Ke8 {[%clk 0:01:24.8]} 31. Qxg7 {[%clk 0:00:44]} 31... Ne6
{[%clk 0:01:24.5]} 32. Qh8+ {[%clk 0:00:37.8]} 32... Kd7 {[%clk 0:01:20.8]} 33.
Qxe5 {[%clk 0:00:36.8]} 33... Kc8 {[%clk 0:01:01.5]} 34. Rxd6 {[%clk 0:00:37]}
34... Rxd6 {[%clk 0:01:00.9]} 35. Rxd6 {[%clk 0:00:37.9]} 35... b3 {[%clk
0:00:59.3]} 36. Ng5 {[%clk 0:00:31.7]} 36... Qc5 {[%clk 0:00:20.7]} 37. Rxe6
{[%clk 0:00:08.8]} 37... Qf2+ {[%clk 0:00:20.3]} 38. Kh1 {[%clk 0:00:08.5]}
38... Qh2# {[%clk 0:00:21.2]} 0-1

[Event "Late-Titled-Tuesday-Blitz-February-06-2024"]
[Site "Chess.com"]
[Date "2024.02.06"]
[Round "2"]
[White "giovannibrandao7"]
[Black "marianokar"]
[Result "1-0"]
[WhiteElo "2214"]
[BlackElo "2447"]
[TimeControl "180+1"]
[EndTime "14:18:01 PST"]
[Termination "giovannibrandao7 won on time"]

1. e4 {[%clk 0:02:59.6]} 1... Nf6 {[%clk 0:02:56.6]} 2. e5 {[%clk 0:02:59.3]}
2... Nd5 {[%clk 0:02:56.8]} 3. d4 {[%clk 0:02:59.6]} 3... d6 {[%clk 0:02:56.7]}
4. Nf3 {[%clk 0:03:00.2]} 4... c6 {[%clk 0:02:53.7]} 5. c4 {[%clk 0:02:56.2]}
5... Nc7 {[%clk 0:02:49.3]} 6. Nc3 {[%clk 0:02:55.8]} 6... Bg4 {[%clk
0:02:47.9]} 7. exd6 {[%clk 0:02:54.9]} 7... exd6 {[%clk 0:02:42.9]} 8. h3 {[%clk
0:02:53.7]} 8... Bh5 {[%clk 0:02:41.6]} 9. Be2 {[%clk 0:02:52.1]} 9... Be7
{[%clk 0:02:41.6]} 10. O-O {[%clk 0:02:52.2]} 10... O-O {[%clk 0:02:41.7]} 11.
Bf4 {[%clk 0:02:52.7]} 11... Nd7 {[%clk 0:02:40.4]} 12. d5 {[%clk 0:02:40.4]}
12... Nb6 {[%clk 0:01:56.2]} 13. dxc6 {[%clk 0:02:37.4]} 13... bxc6 {[%clk
0:01:57.1]} 14. Rc1 {[%clk 0:02:11.1]} 14... Ne6 {[%clk 0:01:56.6]} 15. Bg3
{[%clk 0:02:08.4]} 15... d5 {[%clk 0:01:51.2]} 16. cxd5 {[%clk 0:02:06.1]} 16...
cxd5 {[%clk 0:01:52.1]} 17. Nd4 {[%clk 0:01:53.9]} 17... Bxe2 {[%clk 0:01:50.7]}
18. Ndxe2 {[%clk 0:01:54]} 18... Bf6 {[%clk 0:01:48.2]} 19. b3 {[%clk
0:01:51.3]} 19... Rc8 {[%clk 0:01:40.2]} 20. Nb5 {[%clk 0:01:37.9]} 20... Qd7
{[%clk 0:01:37.5]} 21. Nd6 {[%clk 0:01:07.7]} 21... Rc6 {[%clk 0:01:25.3]} 22.
Rxc6 {[%clk 0:01:06.1]} 22... Qxc6 {[%clk 0:01:24.8]} 23. Qc1 {[%clk 0:00:58]}
23... Qxc1 {[%clk 0:01:14]} 24. Nxc1 {[%clk 0:00:58.9]} 24... d4 {[%clk
0:01:09.3]} 25. Rd1 {[%clk 0:00:56.3]} 25... Nd5 {[%clk 0:01:06.8]} 26. Ne4
{[%clk 0:00:47.2]} 26... Nc3 {[%clk 0:01:03.8]} 27. Nxf6+ {[%clk 0:00:40.3]}
27... gxf6 {[%clk 0:01:02.1]} 28. Rd2 {[%clk 0:00:40.8]} 28... Rc8 {[%clk
0:00:41.3]} 29. f3 {[%clk 0:00:25.7]} 29... Ne4 {[%clk 0:00:10.8]} 30. fxe4
{[%clk 0:00:23.2]} 30... Rxc1+ {[%clk 0:00:11.3]} 31. Kf2 {[%clk 0:00:17.5]}
31... a6 {[%clk 0:00:02.9]} 32. Ke2 {[%clk 0:00:13.4]} 1-0

[Event "Late-Titled-Tuesday-Blitz-February-06-2024"]
[Site "Chess.com"]
[Date "2024.02.06"]
[Round "2"]
[White "AldokhinIvan"]
[Black "Marcan2b"]
[Result "0-1"]
[WhiteElo "2622"]
[BlackElo "3005"]
[TimeControl "180+1"]
[EndTime "14:18:02 PST"]
[Termination "Marcan2b won by checkmate"]

1. e4 {[%clk 0:02:58.4]} 1... c6 {[%clk 0:02:58.4]} 2. Nc3 {[%clk 0:02:58.3]}
2... d5 {[%clk 0:02:59.3]} 3. d4 {[%clk 0:02:59.2]} 3... dxe4 {[%clk 0:02:59.1]}
4. Nxe4 {[%clk 0:03:00.1]} 4... Nf6 {[%clk 0:02:59.5]} 5. Nxf6+ {[%clk
0:03:00.5]} 5... exf6 {[%clk 0:03:00.4]} 6. c3 {[%clk 0:03:01.1]} 6... Bd6
{[%clk 0:03:00.9]} 7. Bd3 {[%clk 0:03:02]} 7... O-O {[%clk 0:02:55.8]} 8. Ne2
{[%clk 0:03:02.9]} 8... Re8 {[%clk 0:02:55.9]} 9. Qc2 {[%clk 0:03:03.8]} 9... g6
{[%clk 0:02:55.9]} 10. O-O {[%clk 0:03:03.6]} 10... Nd7 {[%clk 0:02:55.5]} 11.
Ng3 {[%clk 0:03:03.2]} 11... f5 {[%clk 0:02:54.3]} 12. Bd2 {[%clk 0:02:49.1]}
12... Nf6 {[%clk 0:02:53.1]} 13. Rae1 {[%clk 0:02:42.4]} 13... Be6 {[%clk
0:02:52.4]} 14. Bg5 {[%clk 0:02:36.2]} 14... Be7 {[%clk 0:02:51.8]} 15. Bxf6
{[%clk 0:02:23.9]} 15... Bxf6 {[%clk 0:02:51.7]} 16. Ne2 {[%clk 0:02:24.6]}
16... Qd6 {[%clk 0:02:51.4]} 17. Qd2 {[%clk 0:02:15.8]} 17... b5 {[%clk
0:02:46]} 18. a3 {[%clk 0:02:12.8]} 18... Kg7 {[%clk 0:02:42.2]} 19. Nf4 {[%clk
0:02:12.2]} 19... Bd7 {[%clk 0:02:41.5]} 20. g3 {[%clk 0:02:07.5]} 20... a5
{[%clk 0:02:38.2]} 21. Rxe8 {[%clk 0:01:50.7]} 21... Rxe8 {[%clk 0:02:36.8]} 22.
Re1 {[%clk 0:01:51.2]} 22... Rxe1+ {[%clk 0:02:37.5]} 23. Qxe1 {[%clk
0:01:50.9]} 23... c5 {[%clk 0:02:38.2]} 24. Qe2 {[%clk 0:01:38.6]} 24... cxd4
{[%clk 0:02:34]} 25. Bxb5 {[%clk 0:01:37.2]} 25... Bxb5 {[%clk 0:02:33]} 26.
Qxb5 {[%clk 0:01:36.7]} 26... dxc3 {[%clk 0:02:33.9]} 27. bxc3 {[%clk
0:01:35.9]} 27... Qxa3 {[%clk 0:02:34]} 28. Qd7 {[%clk 0:01:18.8]} 28... Qe7
{[%clk 0:02:28.1]} 29. Qc6 {[%clk 0:01:11.9]} 29... Qe1+ {[%clk 0:02:26.6]} 30.
Kg2 {[%clk 0:01:11.9]} 30... Qxc3 {[%clk 0:02:27.5]} 31. Qd7 {[%clk 0:01:08.9]}
31... Qc4 {[%clk 0:02:27.4]} 32. Nd5 {[%clk 0:01:04.3]} 32... a4 {[%clk
0:02:22.2]} 33. Nxf6 {[%clk 0:00:49.8]} 33... Kxf6 {[%clk 0:02:21.8]} 34. Qd6+
{[%clk 0:00:49.9]} 34... Kg7 {[%clk 0:02:20.7]} 35. Qe5+ {[%clk 0:00:49.7]}
35... f6 {[%clk 0:02:18.4]} 36. Qe7+ {[%clk 0:00:48.2]} 36... Qf7 {[%clk
0:02:18.7]} 37. Qa3 {[%clk 0:00:47.8]} 37... Qb7+ {[%clk 0:02:17.3]} 38. Kh3
{[%clk 0:00:47]} 38... Qa7 {[%clk 0:02:13.1]} 39. Kg2 {[%clk 0:00:41.2]} 39...
g5 {[%clk 0:02:11.7]} 40. h4 {[%clk 0:00:40.2]} 40... Qb7+ {[%clk 0:02:04]} 41.
Kh2 {[%clk 0:00:37.5]} 41... gxh4 {[%clk 0:01:54.3]} 42. gxh4 {[%clk 0:00:37]}
42... Qb8+ {[%clk 0:01:53.4]} 43. Kg2 {[%clk 0:00:31.1]} 43... Qa8+ {[%clk
0:01:53.1]} 44. Kh2 {[%clk 0:00:30.6]} 44... Qa7 {[%clk 0:01:52.8]} 45. Kg2
{[%clk 0:00:26.8]} 45... h5 {[%clk 0:01:49]} 46. Qg3+ {[%clk 0:00:26.3]} 46...
Kh7 {[%clk 0:01:48.6]} 47. Qf3 {[%clk 0:00:25.3]} 47... Qg7+ {[%clk 0:01:47.7]}
48. Kf1 {[%clk 0:00:22.2]} 48... Qg4 {[%clk 0:01:48.6]} 49. Qa8 {[%clk 0:00:18]}
49... Qxh4 {[%clk 0:01:40.5]} 50. Qf8 {[%clk 0:00:17.2]} 50... Qh1+ {[%clk
0:01:39.7]} 51. Ke2 {[%clk 0:00:17.1]} 51... Qe4+ {[%clk 0:01:40.6]} 52. Kf1
{[%clk 0:00:17.5]} 52... Qc4+ {[%clk 0:01:39.1]} 53. Kg1 {[%clk 0:00:14.6]}
53... Qg4+ {[%clk 0:01:38.7]} 54. Kf1 {[%clk 0:00:14.7]} 54... Qg7 {[%clk
0:01:39.6]} 55. Qe8 {[%clk 0:00:14.1]} 55... Kh6 {[%clk 0:01:35.3]} 56. Qxa4
{[%clk 0:00:13.7]} 56... Qg4 {[%clk 0:01:35.5]} 57. Qe8 {[%clk 0:00:12.6]} 57...
Kg5 {[%clk 0:01:35.7]} 58. Qg8+ {[%clk 0:00:11.5]} 58... Kh4 {[%clk 0:01:35.9]}
59. Qd8 {[%clk 0:00:09.8]} 59... Qh3+ {[%clk 0:01:32]} 60. Ke2 {[%clk
0:00:09.5]} 60... Qg4+ {[%clk 0:01:32.4]} 61. Kf1 {[%clk 0:00:10]} 61... Kh3
{[%clk 0:01:25.3]} 62. Qxf6 {[%clk 0:00:10]} 62... Qd1# {[%clk 0:01:25.4]} 0-1

[Event "Late-Titled-Tuesday-Blitz-February-06-2024"]
[Site "Chess.com"]
[Date "2024.02.06"]
[Round "2"]
[White "DeArron_Fox"]
[Black "matagordo"]
[Result "1-0"]
[WhiteElo "2506"]
[BlackElo "2225"]
[TimeControl "180+1"]
[EndTime "14:18:04 PST"]
[Termination "DeArron_Fox won by resignation"]

1. d4 {[%clk 0:02:44.4]} 1... Nf6 {[%clk 0:02:58.5]} 2. c4 {[%clk 0:02:35.4]}
2... d6 {[%clk 0:02:57.9]} 3. Nc3 {[%clk 0:02:35.7]} 3... e5 {[%clk 0:02:57.1]}
4. Nf3 {[%clk 0:02:34.5]} 4... e4 {[%clk 0:02:56.9]} 5. Nd2 {[%clk 0:02:30.1]}
5... Qe7 {[%clk 0:02:57.1]} 6. Nb3 {[%clk 0:02:26.4]} 6... g6 {[%clk 0:02:53.1]}
7. Bg5 {[%clk 0:02:25.4]} 7... Bf5 {[%clk 0:02:48.3]} 8. Nd5 {[%clk 0:02:23.5]}
8... Nxd5 {[%clk 0:02:47.8]} 9. Bxe7 {[%clk 0:02:23.2]} 9... Nxe7 {[%clk
0:02:48.7]} 10. e3 {[%clk 0:02:17.6]} 10... Bg7 {[%clk 0:02:48.7]} 11. Nd2
{[%clk 0:02:13.4]} 11... O-O {[%clk 0:02:45.9]} 12. g4 {[%clk 0:01:58.3]} 12...
Bd7 {[%clk 0:02:39.9]} 13. Nxe4 {[%clk 0:01:58]} 13... Re8 {[%clk 0:02:40]} 14.
Bg2 {[%clk 0:01:54.7]} 14... h6 {[%clk 0:02:23]} 15. h4 {[%clk 0:01:41.8]} 15...
Nc8 {[%clk 0:02:17.1]} 16. h5 {[%clk 0:01:32.4]} 16... g5 {[%clk 0:02:16.9]} 17.
Ng3 {[%clk 0:01:28.3]} 17... Nc6 {[%clk 0:02:05.2]} 18. O-O {[%clk 0:01:23.9]}
18... Rb8 {[%clk 0:02:02.7]} 19. Nf5 {[%clk 0:01:19]} 19... Bf8 {[%clk
0:02:02.8]} 20. f4 {[%clk 0:01:12.5]} 20... Bxf5 {[%clk 0:01:57.9]} 21. gxf5
{[%clk 0:01:06.6]} 21... Rxe3 {[%clk 0:01:58.6]} 22. fxg5 {[%clk 0:01:00]} 22...
hxg5 {[%clk 0:01:59.5]} 23. Qd2 {[%clk 0:00:57]} 23... Rg3 {[%clk 0:01:48.5]}
24. Kh2 {[%clk 0:00:54.7]} 24... Rg4 {[%clk 0:01:45.5]} 25. Bh3 {[%clk
0:00:54.6]} 25... Rxd4 {[%clk 0:01:41]} 26. Qxg5+ {[%clk 0:00:54.7]} 26... Kh8
{[%clk 0:01:39.8]} 27. Rg1 {[%clk 0:00:43.3]} 27... N8e7 {[%clk 0:01:15]} 28.
Qf6+ {[%clk 0:00:43.2]} 28... Kh7 {[%clk 0:01:12.1]} 29. Qxf7+ {[%clk
0:00:43.2]} 29... Kh8 {[%clk 0:01:10.6]} 30. f6 {[%clk 0:00:30.3]} 30... Ne5
{[%clk 0:00:54.4]} 31. Qe6 {[%clk 0:00:16.5]} 31... Bh6 {[%clk 0:00:41.2]} 32.
fxe7 {[%clk 0:00:11.7]} 32... Nf3+ {[%clk 0:00:33.5]} 33. Kh1 {[%clk 0:00:11.8]}
33... Ng5 {[%clk 0:00:12.7]} 34. e8=Q+ {[%clk 0:00:10.8]} 34... Rxe8 {[%clk
0:00:13]} 35. Qxe8+ {[%clk 0:00:11.7]} 35... Kh7 {[%clk 0:00:13.2]} 36. Qg6+
{[%clk 0:00:12.4]} 36... Kh8 {[%clk 0:00:12.9]} 37. Qxh6+ {[%clk 0:00:13.3]}
37... Kg8 {[%clk 0:00:13.4]} 38. Rxg5+ {[%clk 0:00:12.5]} 38... Kf7 {[%clk
0:00:14.1]} 39. Rg7+ {[%clk 0:00:11.9]} 1-0

[Event "Late-Titled-Tuesday-Blitz-February-06-2024"]
[Site "Chess.com"]
[Date "2024.02.06"]
[Round "2"]
[White "Incognito_Knight"]
[Black "picturesquecheck"]
[Result "1-0"]
[WhiteElo "2718"]
[BlackElo "2395"]
[TimeControl "180+1"]
[EndTime "14:18:05 PST"]
[Termination "Incognito_Knight won by resignation"]

1. b3 {[%clk 0:02:57.6]} 1... Nf6 {[%clk 0:02:58.5]} 2. Bb2 {[%clk 0:02:57.8]}
2... g6 {[%clk 0:02:59.1]} 3. Nf3 {[%clk 0:02:57.5]} 3... Bg7 {[%clk 0:02:59.2]}
4. g3 {[%clk 0:02:58.2]} 4... O-O {[%clk 0:02:59.6]} 5. Bg2 {[%clk 0:02:58.8]}
5... d6 {[%clk 0:02:59.4]} 6. d4 {[%clk 0:02:58.6]} 6... e5 {[%clk 0:02:55.4]}
7. dxe5 {[%clk 0:02:59.5]} 7... Ng4 {[%clk 0:02:55]} 8. Nc3 {[%clk 0:02:47.6]}
8... Nxe5 {[%clk 0:02:54.5]} 9. Qd2 {[%clk 0:02:45.8]} 9... Nbc6 {[%clk
0:02:50.6]} 10. O-O-O {[%clk 0:02:43.6]} 10... Nxf3 {[%clk 0:02:37.7]} 11. Bxf3
{[%clk 0:02:41.2]} 11... Re8 {[%clk 0:02:33]} 12. Kb1 {[%clk 0:02:40.1]} 12...
Bd7 {[%clk 0:02:21.4]} 13. h4 {[%clk 0:02:39.4]} 13... h5 {[%clk 0:02:06.1]} 14.
Rdg1 {[%clk 0:02:38.9]} 14... Nd4 {[%clk 0:01:46.2]} 15. Bxb7 {[%clk 0:02:32.2]}
15... Rb8 {[%clk 0:01:45.6]} 16. Bg2 {[%clk 0:02:32.9]} 16... Bg4 {[%clk
0:01:29.6]} 17. Re1 {[%clk 0:02:22.4]} 17... Bf5 {[%clk 0:01:19.3]} 18. e4
{[%clk 0:02:03.3]} 18... Bg4 {[%clk 0:01:19.4]} 19. Qd3 {[%clk 0:02:00.3]} 19...
c5 {[%clk 0:01:17.8]} 20. Nd5 {[%clk 0:01:41.1]} 20... Be6 {[%clk 0:01:13.3]}
21. Bh3 {[%clk 0:01:22.2]} 21... Bxd5 {[%clk 0:01:11.9]} 22. exd5 {[%clk
0:01:23.1]} 22... Qa5 {[%clk 0:01:04.7]} 23. Re3 {[%clk 0:00:57.1]} 23... Rxe3
{[%clk 0:01:01.1]} 24. fxe3 {[%clk 0:00:57.7]} 24... Nb5 {[%clk 0:00:59.4]} 25.
Rf1 {[%clk 0:00:19.5]} 25... c4 {[%clk 0:00:53.2]} 26. Qxc4 {[%clk 0:00:14.6]}
26... Na3+ {[%clk 0:00:42.4]} 27. Bxa3 {[%clk 0:00:13.4]} 27... Qxa3 {[%clk
0:00:43.3]} 28. c3 {[%clk 0:00:13.7]} 28... Qa5 {[%clk 0:00:39.7]} 29. Rc1
{[%clk 0:00:08.6]} 29... Re8 {[%clk 0:00:34]} 30. e4 {[%clk 0:00:07]} 30... f5
{[%clk 0:00:26]} 31. exf5 {[%clk 0:00:05.6]} 31... gxf5 {[%clk 0:00:19.2]} 32.
Bxf5 {[%clk 0:00:06.5]} 32... Qb6 {[%clk 0:00:14.6]} 33. Be6+ {[%clk 0:00:06.6]}
33... Kh8 {[%clk 0:00:14.1]} 34. Qe2 {[%clk 0:00:05.2]} 1-0

[Event "Late-Titled-Tuesday-Blitz-February-06-2024"]
[Site "Chess.com"]
[Date "2024.02.06"]
[Round "2"]
[White "SmirnovTimofey2000"]
[Black "ACollins05"]
[Result "0-1"]
[WhiteElo "1965"]
[BlackElo "2421"]
[TimeControl "180+1"]
[EndTime "14:18:14 PST"]
[Termination "ACollins05 won on time"]

1. e4 {[%clk 0:02:57.5]} 1... c5 {[%clk 0:02:59.4]} 2. c3 {[%clk 0:02:57.6]}
2... Nf6 {[%clk 0:02:58.8]} 3. e5 {[%clk 0:02:57.2]} 3... Nd5 {[%clk 0:02:59.2]}
4. d4 {[%clk 0:02:57.5]} 4... cxd4 {[%clk 0:02:59]} 5. Nf3 {[%clk 0:02:56.3]}
5... d6 {[%clk 0:02:57.9]} 6. exd6 {[%clk 0:02:54.6]} 6... e6 {[%clk 0:02:57.7]}
7. cxd4 {[%clk 0:02:42.9]} 7... Bxd6 {[%clk 0:02:57.3]} 8. Nc3 {[%clk
0:02:40.6]} 8... O-O {[%clk 0:02:56.1]} 9. Be2 {[%clk 0:02:31.8]} 9... Nc6
{[%clk 0:02:55.7]} 10. O-O {[%clk 0:02:30.9]} 10... Nce7 {[%clk 0:02:38.1]} 11.
Bg5 {[%clk 0:02:23.5]} 11... h6 {[%clk 0:02:34.5]} 12. Bh4 {[%clk 0:02:23.6]}
12... Nf4 {[%clk 0:02:27.9]} 13. Re1 {[%clk 0:02:12.3]} 13... Nxe2+ {[%clk
0:02:24.8]} 14. Rxe2 {[%clk 0:02:13.2]} 14... Re8 {[%clk 0:02:18.6]} 15. Ne5
{[%clk 0:02:05.2]} 15... b6 {[%clk 0:02:09.9]} 16. d5 {[%clk 0:01:54.9]} 16...
g5 {[%clk 0:01:34.4]} 17. Bg3 {[%clk 0:01:48.9]} 17... Bxe5 {[%clk 0:01:30.3]}
18. Bxe5 {[%clk 0:01:42.1]} 18... Nxd5 {[%clk 0:01:28.2]} 19. Rd2 {[%clk
0:01:24.6]} 19... Bb7 {[%clk 0:01:28.1]} 20. Rc1 {[%clk 0:01:16.3]} 20... Rc8
{[%clk 0:01:25.9]} 21. Nb5 {[%clk 0:01:08.7]} 21... Rxc1 {[%clk 0:01:19.6]} 22.
Qxc1 {[%clk 0:01:09.6]} 22... Qd7 {[%clk 0:01:09.9]} 23. Nd6 {[%clk 0:01:04.1]}
23... Rd8 {[%clk 0:01:05.8]} 24. Ne4 {[%clk 0:00:53.8]} 24... Qe7 {[%clk
0:00:50.4]} 25. Rxd5 {[%clk 0:00:44.4]} 25... Rc8 {[%clk 0:00:12.6]} 26. Qd1
{[%clk 0:00:13.6]} 26... exd5 {[%clk 0:00:09.8]} 27. Nf6+ {[%clk 0:00:11.5]}
27... Kf8 {[%clk 0:00:09.7]} 28. Nh7+ {[%clk 0:00:09.7]} 28... Ke8 {[%clk
0:00:09.7]} 29. Nf6+ {[%clk 0:00:09.3]} 29... Kd8 {[%clk 0:00:10.1]} 30. Nxd5
{[%clk 0:00:05.9]} 30... Qd7 {[%clk 0:00:09.9]} 31. Bf6+ {[%clk 0:00:04.6]}
31... Ke8 {[%clk 0:00:10.2]} 32. Qe2+ {[%clk 0:00:03.3]} 32... Qe6 {[%clk
0:00:09.7]} 33. Nc7+ {[%clk 0:00:02.1]} 33... Rxc7 {[%clk 0:00:09.7]} 34. Qb5+
{[%clk 0:00:01.8]} 34... Bc6 {[%clk 0:00:09.8]} 0-1

[Event "Late-Titled-Tuesday-Blitz-February-06-2024"]
[Site "Chess.com"]
[Date "2024.02.06"]
[Round "2"]
[White "wild3000"]
[Black "Mops_2004"]
[Result "0-1"]
[WhiteElo "2353"]
[BlackElo "2718"]
[TimeControl "180+1"]
[EndTime "14:18:16 PST"]
[Termination "Mops_2004 won by checkmate"]

1. e4 {[%clk 0:03:00]} 1... g6 {[%clk 0:02:59.9]} 2. d4 {[%clk 0:02:58.3]} 2...
Bg7 {[%clk 0:03:00.5]} 3. Nf3 {[%clk 0:02:57.6]} 3... d6 {[%clk 0:03:00.7]} 4.
g3 {[%clk 0:02:55.1]} 4... Nc6 {[%clk 0:02:57.7]} 5. Bg2 {[%clk 0:02:52]} 5...
Bg4 {[%clk 0:02:57.7]} 6. c3 {[%clk 0:02:51.9]} 6... e5 {[%clk 0:02:56.5]} 7. d5
{[%clk 0:02:43.7]} 7... Nce7 {[%clk 0:02:56.5]} 8. h3 {[%clk 0:02:43.2]} 8...
Bd7 {[%clk 0:02:56.5]} 9. c4 {[%clk 0:02:37.3]} 9... f5 {[%clk 0:02:55.1]} 10.
Nc3 {[%clk 0:02:35.7]} 10... Nf6 {[%clk 0:02:54.7]} 11. exf5 {[%clk 0:02:24]}
11... gxf5 {[%clk 0:02:54.4]} 12. Bg5 {[%clk 0:02:20.9]} 12... h6 {[%clk
0:02:35.2]} 13. Bxf6 {[%clk 0:02:08.7]} 13... Bxf6 {[%clk 0:02:34.9]} 14. Nd2
{[%clk 0:01:59.6]} 14... h5 {[%clk 0:02:23.9]} 15. h4 {[%clk 0:01:54.7]} 15...
Kf8 {[%clk 0:02:21.8]} 16. Bf3 {[%clk 0:01:51.1]} 16... Qe8 {[%clk 0:02:21.5]}
17. Qc2 {[%clk 0:01:33.6]} 17... c6 {[%clk 0:02:10.9]} 18. O-O-O {[%clk
0:01:00.4]} 18... Rc8 {[%clk 0:02:04.9]} 19. Kb1 {[%clk 0:00:54.9]} 19... e4
{[%clk 0:01:58.9]} 20. dxc6 {[%clk 0:00:45.7]} 20... Bxc6 {[%clk 0:01:35]} 21.
Be2 {[%clk 0:00:43.6]} 21... d5 {[%clk 0:01:33.4]} 22. Nb3 {[%clk 0:00:40.5]}
22... Kg7 {[%clk 0:01:16.7]} 23. c5 {[%clk 0:00:40.1]} 23... Kg6 {[%clk
0:01:03.1]} 24. f3 {[%clk 0:00:40.2]} 24... b6 {[%clk 0:00:47.8]} 25. g4 {[%clk
0:00:39.9]} 25... hxg4 {[%clk 0:00:43.9]} 26. fxg4 {[%clk 0:00:39.5]} 26... f4
{[%clk 0:00:34.9]} 27. g5 {[%clk 0:00:39.5]} 27... Be5 {[%clk 0:00:34.3]} 28.
h5+ {[%clk 0:00:38.7]} 28... Kxg5 {[%clk 0:00:33]} 29. Rdg1+ {[%clk 0:00:37.9]}
29... Kf6 {[%clk 0:00:33.1]} 30. Bg4 {[%clk 0:00:32.8]} 30... Nf5 {[%clk
0:00:31.9]} 31. cxb6 {[%clk 0:00:23.9]} 31... axb6 {[%clk 0:00:25.3]} 32. Bxf5
{[%clk 0:00:23.7]} 32... Kxf5 {[%clk 0:00:25.5]} 33. Qh2 {[%clk 0:00:23.6]}
33... Ke6 {[%clk 0:00:23]} 34. h6 {[%clk 0:00:21.7]} 34... Kd6 {[%clk
0:00:17.8]} 35. h7 {[%clk 0:00:21]} 35... Kc7 {[%clk 0:00:17.7]} 36. Qh6 {[%clk
0:00:17.8]} 36... Kb7 {[%clk 0:00:15.7]} 37. a4 {[%clk 0:00:17]} 37... Bxa4
{[%clk 0:00:14.7]} 38. Nxa4 {[%clk 0:00:16.7]} 38... Qxa4 {[%clk 0:00:15.6]} 39.
Qe6 {[%clk 0:00:12.3]} 39... Qxb3 {[%clk 0:00:13]} 40. Qxe5 {[%clk 0:00:11.5]}
40... Qc2+ {[%clk 0:00:12.8]} 41. Ka2 {[%clk 0:00:11.3]} 41... Ra8# {[%clk
0:00:13.7]} 0-1

[Event "Late-Titled-Tuesday-Blitz-February-06-2024"]
[Site "Chess.com"]
[Date "2024.02.06"]
[Round "2"]
[White "masnyszachistaaa"]
[Black "boguszp"]
[Result "1-0"]
[WhiteElo "2546"]
[BlackElo "2106"]
[TimeControl "180+1"]
[EndTime "14:18:16 PST"]
[Termination "masnyszachistaaa won on time"]

1. c4 {[%clk 0:03:00.9]} 1... c5 {[%clk 0:02:58.4]} 2. Nc3 {[%clk 0:03:00.3]}
2... g6 {[%clk 0:02:58.8]} 3. g3 {[%clk 0:02:58.4]} 3... Bg7 {[%clk 0:02:59.1]}
4. Bg2 {[%clk 0:02:58.9]} 4... Nc6 {[%clk 0:02:59.4]} 5. d3 {[%clk 0:02:53.6]}
5... e6 {[%clk 0:02:57.5]} 6. e4 {[%clk 0:02:52.1]} 6... Nge7 {[%clk 0:02:56.6]}
7. Nge2 {[%clk 0:02:52.4]} 7... Nd4 {[%clk 0:02:56.3]} 8. Be3 {[%clk 0:02:47]}
8... Nec6 {[%clk 0:02:55.6]} 9. O-O {[%clk 0:02:41.3]} 9... O-O {[%clk
0:02:54.8]} 10. Rb1 {[%clk 0:02:40.3]} 10... d6 {[%clk 0:02:52.1]} 11. Qd2
{[%clk 0:02:27.2]} 11... Re8 {[%clk 0:02:49.3]} 12. a3 {[%clk 0:02:08.8]} 12...
a5 {[%clk 0:02:35.1]} 13. Bg5 {[%clk 0:01:38.8]} 13... f6 {[%clk 0:02:33.3]} 14.
Be3 {[%clk 0:01:36.9]} 14... e5 {[%clk 0:02:29.3]} 15. Nd5 {[%clk 0:01:24.6]}
15... Be6 {[%clk 0:02:29.4]} 16. Nxd4 {[%clk 0:01:12]} 16... Nxd4 {[%clk
0:02:23.3]} 17. b4 {[%clk 0:00:56.4]} 17... Bxd5 {[%clk 0:02:20.4]} 18. cxd5
{[%clk 0:00:49.2]} 18... b6 {[%clk 0:01:59.6]} 19. bxc5 {[%clk 0:00:44.3]} 19...
bxc5 {[%clk 0:01:59.4]} 20. Rb7 {[%clk 0:00:44.4]} 20... Re7 {[%clk 0:01:48.4]}
21. Rfb1 {[%clk 0:00:42.9]} 21... Rxb7 {[%clk 0:01:38.5]} 22. Rxb7 {[%clk
0:00:43.8]} 22... Rb8 {[%clk 0:01:36]} 23. Qb2 {[%clk 0:00:31.4]} 23... Rxb7
{[%clk 0:01:27.8]} 24. Qxb7 {[%clk 0:00:32.3]} 24... f5 {[%clk 0:00:52.7]} 25.
Bh3 {[%clk 0:00:25]} 25... h6 {[%clk 0:00:47.1]} 26. Bxd4 {[%clk 0:00:24.3]}
26... exd4 {[%clk 0:00:39.5]} 27. exf5 {[%clk 0:00:23.7]} 27... g5 {[%clk
0:00:27.8]} 28. Bg2 {[%clk 0:00:20.4]} 28... Bf6 {[%clk 0:00:20.3]} 29. Bf3
{[%clk 0:00:18.6]} 29... Qe7 {[%clk 0:00:19]} 30. Qc8+ {[%clk 0:00:16.7]} 30...
Kg7 {[%clk 0:00:17.5]} 31. Bh5 {[%clk 0:00:11.8]} 31... Qf8 {[%clk 0:00:10]} 32.
Qc7+ {[%clk 0:00:09.1]} 32... Be7 {[%clk 0:00:07]} 33. Bg6 {[%clk 0:00:07.1]}
33... Qd8 {[%clk 0:00:05.4]} 34. Qa7 {[%clk 0:00:06]} 34... Kf6 {[%clk
0:00:03.9]} 35. Kg2 {[%clk 0:00:05.9]} 1-0